fUST/lending_fUST_20251130
["ID","MTS","AMOUNT","RATE_DAILY","PERIOD"]
[395154080,1764487749268,-500.0,6.875e-05,2]
[395154081,1764487749287,-500.0,6.875e-05,2]
[395154082,1764487749309,-500.0,6.875e-05,2]
[395154083,1764487749331,-500.0,6.875e-05,2]
[395154084,1764487749356,-500.0,6.875e-05,2]
[395154085,1764487749375,-500.0,6.875e-05,2]
[395154086,1764487749395,-500.0,6.875e-05,2]
[395154087,1764487749414,-500.0,6.875e-05,2]
[395154088,1764487749435,-500.0,6.875e-05,2]
[395154089,1764487749456,-500.0,6.875e-05,2]
[395154090,1764487749477,-500.0,6.875e-05,2]
[395154091,1764487749497,-500.0,6.875e-05,2]
[395154092,1764487749518,-500.0,6.875e-05,2]
[395154093,1764487749541,-500.0,6.875e-05,2]
[395154094,1764487749565,-500.0,6.875e-05,2]
[395154095,1764487749587,-500.0,6.875e-05,2]
[395154096,1764487749609,-500.0,6.875e-05,2]
[395154097,1764487749630,-500.0,6.875e-05,2]
[395154098,1764487749649,-618.7790047,6.875e-05,2]
[395154099,1764487749670,-500.0,6.875e-05,2]
[395154100,1764487749692,-500.0,6.875e-05,2]
[395154101,1764487749713,-500.0,6.875e-05,2]
[395154102,1764487749735,-500.0,6.875e-05,2]
[395154103,1764487749756,-500.0,6.875e-05,2]
[395154104,1764487749778,-500.0,6.875e-05,2]
[395154105,1764487749798,-500.0,6.875e-05,2]
[395154106,1764487749819,-500.0,6.875e-05,2]
[395154107,1764487749844,-500.0,6.875e-05,2]
[395154108,1764487749865,-500.0,6.875e-05,2]
[395154109,1764487749888,-500.0,6.875e-05,2]
[395154110,1764487749910,-500.0,6.875e-05,2]
[395154111,1764487749932,-500.0,6.875e-05,2]
[395154112,1764487749954,-500.0,6.875e-05,2]
[395154113,1764487749976,-500.0,6.875e-05,2]
[395154114,1764487749998,-500.0,6.875e-05,2]
[395154115,1764487750021,-500.0,6.875e-05,2]
[395154117,1764487750052,-500.0,6.875e-05,2]
[395154118,1764487750083,-500.0,6.875e-05,2]
[395154119,1764487750106,-500.0,6.875e-05,2]
[395154120,1764487750129,-500.0,6.875e-05,2]
[395154121,1764487750153,-550.34029196,6.875e-05,2]
[395154122,1764487750176,-500.0,6.875e-05,2]
[395154123,1764487750200,-500.0,6.875e-05,2]
[395154124,1764487750225,-500.0,6.875e-05,2]
[395154125,1764487750249,-500.0,6.875e-05,2]
[395154126,1764487750274,-500.0,6.875e-05,2]
[395154127,1764487750299,-500.0,6.875e-05,2]
[395154128,1764487750321,-500.0,6.875e-05,2]
[395154129,1764487750344,-500.0,6.875e-05,2]
[395154130,1764487750372,-287.72473847,6.875e-05,2]
[395154131,1764487750396,-500.0,6.875e-05,2]
[395154132,1764487750419,-500.0,6.875e-05,2]
[395154133,1764487750443,-500.0,6.875e-05,2]
[395154134,1764487750468,-500.0,6.875e-05,2]
[395154135,1764487750491,-500.0,6.875e-05,2]
[395154136,1764487750513,-500.0,6.875e-05,2]
[395154137,1764487750536,-573.74556689,6.875e-05,2]
[395154138,1764487750558,-500.0,6.875e-05,2]
[395154139,1764487750579,-28740.147874,6.877e-05,2]
[395154140,1764487750599,-279.75822343,7.016e-05,2]
[395154141,1764487750619,-19209.55627303,7.017e-05,2]
[395154142,1764487750879,-420.0,7.561e-05,2]
[395154143,1764487750901,-1680.0,7.563e-05,2]
[395154144,1764487750922,-227.0,7.64e-05,2]
[395154145,1764487750946,-1680.0,7.64e-05,2]
[395154146,1764487750966,-596.2226054,7.65e-05,2]
[395154147,1764487750987,-403.3873747,7.65e-05,2]
[395154148,1764487751006,-596.2226054,7.65e-05,2]
[395154149,1764487751026,-396.8792412,7.65e-05,2]
[395154150,1764487751045,-396.8792412,7.65e-05,2]
[395154151,1764487751064,-165.0310035,7.65e-05,2]
[395154152,1764487751084,-301.7532616,7.65e-05,2]
[395154153,1764487751105,-396.8792412,7.65e-05,2]
[395154154,1764487751125,-1231.8951269,7.65e-05,2]
[395154155,1764487751144,-153.0,7.65e-05,2]
[395154156,1764487751165,-275.76668544,7.907e-05,2]
[395154157,1764487751186,-496.38003379,7.907e-05,2]
[395154158,1764487751209,-882.45339341,7.907e-05,2]
[395154159,1764487751235,-3340.62812548,7.909e-05,2]
[395154162,1764487754077,-500.0,6.875e-05,2]
[395154163,1764487754102,-5132.00855539,7.909e-05,2]
[395154164,1764487755113,-71765.84663322,7.909e-05,2]
[395154165,1764487755135,-301.7532616,7.91e-05,2]
[395154166,1764487755157,-165.0310035,7.91e-05,2]
[395154167,1764487755178,-396.9531972,7.91e-05,2]
[395154168,1764487755200,-153.0,7.91e-05,2]
[395154169,1764487755225,-2815.2893444,7.987e-05,2]
[395154170,1764487755248,-423.3410644,7.99e-05,2]
[395154171,1764487755269,-382.2452215,7.99e-05,2]
[395154172,1764487755290,-37.740278,7.99e-05,2]
[395154174,1764487758176,-470.10630521,7.83e-05,2]
[395154179,1764487769088,-6432.14905821,7.83e-05,2]
[395154180,1764487769142,-64863.5912698,7.83e-05,2]
[395154181,1764487769162,-194.80572016,7.907e-05,2]
[395154182,1764487769182,-269.5766214,7.99e-05,2]
[395154183,1764487769201,-793.7584824,7.99e-05,2]
[395154185,1764487769221,-596.2226054,7.99e-05,2]
[395154186,1764487769242,-396.8792412,7.99e-05,2]
[395154187,1764487769262,-596.2226054,7.99e-05,2]
[395154188,1764487769281,-165.0310035,7.99e-05,2]
[395154189,1764487769304,-301.7532616,7.99e-05,2]
[395154190,1764487769324,-317.4906582,7.99e-05,2]
[395154191,1764487769344,-208.5993223,7.99e-05,2]
[395154192,1764487769365,-540.7367635,7.99e-05,2]
[395154193,1764487769386,-222.63510876,7.998e-05,2]
[395154194,1764487769407,-132.48628769,8.01e-05,2]
[395154195,1764487771100,-804.01971231,8.01e-05,2]
[395154196,1764487771121,-596.2226054,8.01e-05,2]
[395154197,1764487771140,-396.8792412,8.01e-05,2]
[395154198,1764487771161,-15011.18519094,8.011e-05,2]
[395154218,1764487818860,-583.12954623,7.91e-05,2]
[395154219,1764487818927,-216.0,7.91e-05,2]
[395154221,1764487819811,195.8307564,7.016e-05,2]
[395154222,1764487821468,500.0,6.875e-05,2]
[395154223,1764487821571,500.0,6.875e-05,2]
[395154224,1764487821655,307.37455669,6.875e-05,2]
[395154225,1764487821781,500.0,6.875e-05,2]
[395154231,1764487830639,500.0,6.875e-05,2]
[395154232,1764487830712,420.85830427,6.875e-05,2]
[395154258,1764487831759,-258.22366975,8.01e-05,2]
[395154265,1764487831859,-41.77633025,8.01e-05,2]
[395154266,1764487831868,-1200.0,8.01e-05,2]
[395154267,1764487831876,-14590.38747243,8.011e-05,2]
[395154268,1764487831887,-808.33422041,8.011e-05,2]
[395154269,1764487831898,-2327.03236663,8.011e-05,2]
[395154271,1764487831910,-1333.37,8.011e-05,2]
[395154330,1764487838299,-4456.84910141,8.011e-05,2]
[395154332,1764487838311,-1896.94150928,8.011e-05,2]
[395154342,1764487838402,-1261.35,8.011e-05,2]
[395154540,1764487840371,-2e-08,8.011e-05,2]
[395154664,1764487843273,-71.31743404,8.011e-05,2]
[395154669,1764487843417,-3326.10019364,8.011e-05,2]
[395154670,1764487843427,-478.75725327,8.017e-05,2]
[395154671,1764487843436,-231.28369723,8.017e-05,2]
[395154672,1764487843445,-500.0,8.017e-05,2]
[395154673,1764487843455,-500.0,8.017e-05,2]
[395154674,1764487843464,-500.0,8.017e-05,2]
[395154675,1764487843473,-249.46812567,8.017e-05,2]
[395154676,1764487843482,-357.73433444,8.018e-05,2]
[395154677,1764487843491,-396.8792412,8.02e-05,2]
[395154678,1764487843500,-195.3087661,8.02e-05,2]
[395154679,1764487843509,-396.8792412,8.02e-05,2]
[395154680,1764487843519,-396.8792412,8.02e-05,2]
[395154681,1764487843529,-151.0,8.022e-05,2]
[395154682,1764487843538,-151.0,8.022e-05,2]
[395154683,1764487843547,-151.0,8.022e-05,2]
[395154684,1764487843557,-1378.8334272,8.038e-05,2]
[395154685,1764487843566,-301.7532616,8.17e-05,2]
[395154686,1764487843575,-165.0310035,8.17e-05,2]
[395154687,1764487843584,-396.9531972,8.17e-05,2]
[395154688,1764487843593,-153.0,8.17e-05,2]
[395154689,1764487843603,-151.323065,8.219e-05,2]
[395154690,1764487843613,-165.0310035,8.22e-05,2]
[395154691,1764487843623,-301.7532616,8.22e-05,2]
[395154692,1764487843632,-396.9531972,8.22e-05,2]
[395154693,1764487843641,-153.0,8.22e-05,2]
[395154694,1764487843650,-410.6758774,8.22e-05,2]
[395154695,1764487843660,-491.6613344,8.22e-05,2]
[395154696,1764487843671,-301.7532616,8.22e-05,2]
[395154697,1764487843681,-301.7532616,8.22e-05,2]
[395154698,1764487843690,-396.9531972,8.22e-05,2]
[395154699,1764487843700,-301.7532616,8.22e-05,2]
[395154700,1764487843709,-396.9531972,8.22e-05,2]
[395154701,1764487843719,-603.5065232,8.22e-05,2]
[395154702,1764487843728,-264.49248261,8.22e-05,2]
[395154718,1764487845891,-132.46071459,8.22e-05,2]
[395154720,1764487845900,-301.7532616,8.22e-05,2]
[395154722,1764487845909,-300.7721192,8.22e-05,2]
[395154724,1764487845918,-301.7532616,8.22e-05,2]
[395154726,1764487845927,-396.9531972,8.22e-05,2]
[395154727,1764487845937,-301.7532616,8.22e-05,2]
[395154728,1764487845946,-783.7352767,8.22e-05,2]
[395154729,1764487845955,-268.8652665,8.22e-05,2]
[395154730,1764487845964,-396.7820932,8.22e-05,2]
[395154731,1764487845973,-396.8792412,8.22e-05,2]
[395154732,1764487845983,-396.8792412,8.22e-05,2]
[395154733,1764487845992,-151.0,8.221e-05,2]
[395154734,1764487846001,-251.12051401,8.221e-05,2]
[395154735,1764487846010,-151.0,8.221e-05,2]
[395154736,1764487846019,-272.79643717,8.221e-05,2]
[395154737,1764487846029,-151.0,8.221e-05,2]
[395154738,1764487846038,-811.0,8.221e-05,2]
[395154739,1764487846047,-151.0,8.221e-05,2]
[395154740,1764487846057,-500.0,8.221e-05,2]
[395154741,1764487846067,-500.0,8.221e-05,2]
[395154742,1764487846076,-151.0,8.221e-05,2]
[395154743,1764487846086,-171.62338099,8.221e-05,2]
[395154744,1764487846095,-151.0,8.221e-05,2]
[395154745,1764487846104,-151.0,8.221e-05,2]
[395154746,1764487846112,-493.62273308,8.221e-05,2]
[395154747,1764487846126,-6.37726692,8.221e-05,2]
[395154748,1764487846135,-500.0,8.221e-05,2]
[395154749,1764487846144,-151.0,8.221e-05,2]
[395154750,1764487846153,-151.29572719,8.221e-05,2]
[395154751,1764487846163,-151.0,8.221e-05,2]
[395154752,1764487846172,-210.40689437,8.221e-05,2]
[395154753,1764487846181,-248.09119689,8.221e-05,2]
[395154754,1764487846191,-151.09883761,8.23e-05,2]
[395154755,1764487846200,-232.50220049,8.23e-05,2]
[395154756,1764487849157,-151.0,8.221e-05,2]
[395154757,1764487849220,-267.49779951,8.23e-05,2]
[395154758,1764487850445,500.0,8.221e-05,2]
[395154760,1764487866540,210.18947461,8.236e-05,2]
[395154775,1764487888942,1032.75589157,8.236e-05,2]
[395154782,1764487898782,-693.31973418,8.319e-05,2]
[395154784,1764487901453,-303.50090823,8.319e-05,2]
[395154786,1764487902914,749.205,8.158e-05,2]
[395154787,1764487904100,-572.96145965,8.319e-05,2]
[395154788,1764487909977,-214.89179956,8.319e-05,2]
[395154789,1764487912298,-198.86071341,8.319e-05,2]
[395154790,1764487912322,-26.45803821,8.319e-05,2]
[395154791,1764487916535,-351.2864564,8.319e-05,2]
[395154792,1764487919380,-380.39404586,8.319e-05,2]
[395154793,1764487922240,-156.46095011,8.319e-05,2]
[395154794,1764487924879,-222.27234796,8.319e-05,2]
[395154795,1764487928212,-508.26921852,8.319e-05,2]
[395154796,1764487930408,-402.09955651,8.319e-05,2]
[395154797,1764487931020,-303.75938643,8.319e-05,2]
[395154800,1764487939556,500.0,6.875e-05,2]
[395154801,1764487939638,274.68124838,6.875e-05,2]
[395154802,1764487939716,500.0,6.875e-05,2]
[395154803,1764487939802,500.0,6.875e-05,2]
[395154804,1764487939883,500.0,6.875e-05,2]
[395154805,1764487939954,270.00563662,6.875e-05,2]
[395154806,1764487940220,300.0,8.24e-05,2]
[395154807,1764487946129,-300.0,8.323e-05,2]
[395154808,1764487950376,2970.0101017,7.425e-05,2]
[395154810,1764487961830,-151.0,8.324e-05,2]
[395154811,1764487961903,-151.0,8.324e-05,2]
[395154812,1764487961968,-151.0,8.324e-05,2]
[395154813,1764487962816,452.09845944,8.241e-05,2]
[395154814,1764487970631,976.26325043,8.241e-05,2]
[395154815,1764487975249,1200.0,8.323e-05,2]
[395154816,1764487976396,500.0,6.875e-05,2]
[395154817,1764487976470,500.0,6.875e-05,2]
[395154818,1764487976561,500.0,6.875e-05,2]
[395154819,1764487976628,500.0,6.875e-05,2]
[395154820,1764487976696,500.0,6.875e-05,2]
[395154821,1764487976768,500.0,6.875e-05,2]
[395154822,1764487976836,500.0,6.875e-05,2]
[395154823,1764487976908,500.0,6.875e-05,2]
[395154824,1764487976980,500.0,6.875e-05,2]
[395154825,1764487977053,500.0,6.875e-05,2]
[395154826,1764487977126,500.0,6.875e-05,2]
[395154827,1764487977194,500.0,6.875e-05,2]
[395154828,1764487977256,465.64829013,6.875e-05,2]
[395154829,1764487977314,34.35170987,6.875e-05,2]
[395154830,1764487977385,500.0,6.875e-05,2]
[395154831,1764487977449,500.0,6.875e-05,2]
[395154832,1764487977512,500.0,6.875e-05,2]
[395154833,1764487977575,288.95729528,6.875e-05,2]
[395154834,1764487977637,500.0,6.875e-05,2]
[395154835,1764487977702,500.0,6.875e-05,2]
[395154836,1764487977767,500.0,6.875e-05,2]
[395154837,1764487977834,500.0,6.875e-05,2]
[395154838,1764487977901,500.0,6.875e-05,2]
[395154839,1764487977967,500.0,6.875e-05,2]
[395154840,1764487978039,500.0,6.875e-05,2]
[395154841,1764487978104,500.0,6.875e-05,2]
[395154842,1764487978177,561.06997125,6.875e-05,2]
[395154843,1764487978252,500.0,6.875e-05,2]
[395154844,1764487978318,500.0,6.875e-05,2]
[395154845,1764487978381,500.0,6.875e-05,2]
[395154846,1764487978446,500.0,6.875e-05,2]
[395154847,1764487978515,500.0,6.875e-05,2]
[395154848,1764487978576,500.0,6.875e-05,2]
[395154849,1764487978649,500.0,6.875e-05,2]
[395154850,1764487978715,115.6310236,6.875e-05,2]
[395154851,1764487978765,384.3689764,6.875e-05,2]
[395154852,1764487978822,500.0,6.875e-05,2]
[395154853,1764487978881,500.0,6.875e-05,2]
[395154854,1764487978942,500.0,6.875e-05,2]
[395154855,1764487979015,500.0,6.875e-05,2]
[395154856,1764487979076,500.0,6.875e-05,2]
[395154857,1764487979143,500.0,6.875e-05,2]
[395154858,1764487979207,500.0,6.875e-05,2]
[395154859,1764487979288,500.0,6.875e-05,2]
[395154860,1764487979595,191.15741321,6.806e-05,2]
[395154861,1764487980664,1426.05025603,8.324e-05,2]
[395154866,1764487993938,774.21113858,8.323e-05,2]
[395154867,1764487994399,218.72274953,8.241e-05,2]
[395154869,1764487999675,1000.0,0.0002,30]
[395154870,1764488002263,2328.38331293,8.241e-05,2]
[395154871,1764488005013,677.11615332,8.224e-05,2]
[395154872,1764488005072,1141.57216394,8.224e-05,2]
[395154874,1764488017078,8858.43783606,8.224e-05,2]
[395154875,1764488017139,10000.01,8.224e-05,2]
[395154876,1764488017200,10000.01,8.224e-05,2]
[395154877,1764488017259,10000.01,8.224e-05,2]
[395154878,1764488017318,10000.01,8.224e-05,2]
[395154879,1764488017377,10000.01,8.224e-05,2]
[395154880,1764488017434,10000.01,8.224e-05,2]
[395154881,1764488017492,10000.01,8.224e-05,2]
[395154882,1764488017548,10000.01,8.224e-05,2]
[395154885,1764488030194,-398.6559954,6.875e-05,2]
[395154886,1764488031816,-101.3440046,6.875e-05,2]
[395154887,1764488031840,-165.43485511,6.875e-05,2]
[395154888,1764488036345,-334.56514489,6.875e-05,2]
[395154889,1764488036368,-8.973905,6.875e-05,2]
[395154893,1764488061941,200.0,0.0002,30]
[395154895,1764488063920,200.0,0.0002,30]
[395154896,1764488064390,-300.0,6.874e-05,2]
[395154897,1764488064414,-133.73785099,7.561e-05,2]
[395154898,1764488065013,201.75589034,0.0002,30]
[395154899,1764488094422,-286.26214901,7.561e-05,2]
[395154900,1764488094450,-15.84493552,7.751e-05,2]
[395154901,1764488097240,-310.09808243,7.751e-05,2]
[395154902,1764488098755,-175.67066949,7.751e-05,2]
[395154903,1764488100237,153517.23,0.0002,30]
[395154904,1764488100627,-93.9965263,7.751e-05,2]
[395154905,1764488100652,-206.0034737,7.942e-05,2]
[395154906,1764488111820,-141.51601638,7.942e-05,2]
[395154907,1764488111847,-225.07239136,8.008e-05,2]
[395154908,1764488115764,-74.92760864,8.008e-05,2]
[395154909,1764488115788,-225.67166388,8.008e-05,2]
[395154910,1764488118116,-74.32833612,8.008e-05,2]
[395154911,1764488118141,-99.6780434,8.008e-05,2]
[395154912,1764488119531,-165.43901368,8.008e-05,2]
[395154913,1764488121645,-34.88294292,8.008e-05,2]
[395154914,1764488121672,-136.70228366,8.008e-05,2]
[395154915,1764488123708,-163.29771634,8.008e-05,2]
[395154916,1764488123732,-318.72461227,8.008e-05,2]
[395154917,1764488125710,-247.57233485,8.008e-05,2]
[395154918,1764488128505,-480.55951501,8.008e-05,2]
[395154919,1764488129248,-153.14353787,8.008e-05,2]
[395154920,1764488130468,-500.0,8.009e-05,2]
[395154921,1764488130491,-132.75012295,8.009e-05,2]
[395154926,1764488132558,-367.24987705,8.009e-05,2]
[395154927,1764488132584,-71.06027706,8.009e-05,2]
[395154928,1764488134736,-379.69304451,8.009e-05,2]
[395154929,1764488136218,-49.24667843,8.009e-05,2]
[395154930,1764488136241,-166.64885962,8.009e-05,2]
[395154931,1764488138563,-214.80385601,8.009e-05,2]
[395154932,1764488140584,-118.54728437,8.009e-05,2]
[395154933,1764488140611,-97.34825368,8.009e-05,2]
[395154934,1764488143406,-402.65174632,8.009e-05,2]
[395154935,1764488143432,-55.05191417,8.009e-05,2]
[395154939,1764488157950,-444.94808583,8.009e-05,2]
[395154940,1764488157976,-280.06446173,8.009e-05,2]
[395154941,1764488161238,-219.93553827,8.009e-05,2]
[395154942,1764488161263,-64.16892368,8.009e-05,2]
[395154943,1764488162345,300.0,8.008e-05,2]
[395154944,1764488162980,-300.0,8.009e-05,2]
[395154945,1764488164688,-135.83107632,8.009e-05,2]
[395154946,1764488164715,-146.83273578,8.009e-05,2]
[395154947,1764488177900,2169.6834196,7.847e-05,2]
[395154949,1764488192220,199.04291051,8.008e-05,2]
[395154950,1764488199486,500.0,8.008e-05,2]
[395154951,1764488199558,500.0,8.008e-05,2]
[395154952,1764488199637,500.0,8.008e-05,2]
[395154953,1764488199722,500.0,8.008e-05,2]
[395154954,1764488199804,500.0,8.008e-05,2]
[395154955,1764488199890,500.0,8.008e-05,2]
[395154956,1764488199965,500.0,8.008e-05,2]
[395154957,1764488200034,500.0,8.008e-05,2]
[395154958,1764488200104,405.35530604,8.008e-05,2]
[395154959,1764488200191,500.0,8.008e-05,2]
[395154960,1764488200267,500.0,8.008e-05,2]
[395154961,1764488200340,500.0,8.008e-05,2]
[395154962,1764488200425,500.0,8.008e-05,2]
[395154963,1764488200513,500.0,8.008e-05,2]
[395154964,1764488200589,425.92836385,8.008e-05,2]
[395154965,1764488200657,74.07163615,8.008e-05,2]
[395154966,1764488200737,499.67106716,8.008e-05,2]
[395154967,1764488200817,500.0,8.008e-05,2]
[395154968,1764488200892,500.0,8.008e-05,2]
[395154969,1764488200967,500.0,8.008e-05,2]
[395154970,1764488201042,500.0,8.008e-05,2]
[395154971,1764488201119,500.0,8.008e-05,2]
[395154972,1764488201190,500.0,8.008e-05,2]
[395154973,1764488201274,474.98970671,8.008e-05,2]
[395154974,1764488201352,500.0,8.008e-05,2]
[395154975,1764488201433,500.0,8.008e-05,2]
[395154976,1764488201500,500.0,8.008e-05,2]
[395154977,1764488201570,500.0,8.008e-05,2]
[395154978,1764488201643,500.0,8.008e-05,2]
[395154979,1764488201741,500.0,8.008e-05,2]
[395154980,1764488201809,500.0,8.008e-05,2]
[395154981,1764488201884,500.0,8.008e-05,2]
[395154982,1764488201980,488.02505601,8.008e-05,2]
[395154983,1764488202052,500.0,8.008e-05,2]
[395154984,1764488202127,500.0,8.008e-05,2]
[395154985,1764488202196,463.25253397,8.008e-05,2]
[395154986,1764488202259,36.74746603,8.008e-05,2]
[395154987,1764488202335,500.0,8.008e-05,2]
[395154988,1764488202411,500.0,8.008e-05,2]
[395154989,1764488202488,500.0,8.008e-05,2]
[395154990,1764488202568,500.0,8.008e-05,2]
[395154991,1764488202643,500.0,8.008e-05,2]
[395154992,1764488202716,500.0,8.008e-05,2]
[395154993,1764488202794,500.0,8.008e-05,2]
[395154994,1764488202867,500.0,8.008e-05,2]
[395154995,1764488202959,500.0,8.008e-05,2]
[395154996,1764488203031,500.0,8.008e-05,2]
[395154997,1764488203104,500.0,8.008e-05,2]
[395154998,1764488203179,500.0,8.008e-05,2]
[395154999,1764488203254,500.0,8.008e-05,2]
[395155001,1764488203343,500.0,8.008e-05,2]
[395155002,1764488203416,500.0,8.008e-05,2]
[395155003,1764488203493,500.0,8.008e-05,2]
[395155004,1764488203563,500.0,8.008e-05,2]
[395155005,1764488203629,500.0,8.008e-05,2]
[395155006,1764488203698,500.0,8.008e-05,2]
[395155007,1764488203779,463.26253397,8.008e-05,2]
[395155008,1764488203841,36.73746603,8.008e-05,2]
[395155009,1764488203916,500.0,8.008e-05,2]
[395155010,1764488203992,500.0,8.008e-05,2]
[395155011,1764488204069,500.0,8.008e-05,2]
[395155012,1764488204300,500.0,8.008e-05,2]
[395155013,1764488204377,561.87790047,8.008e-05,2]
[395155014,1764488204447,500.0,8.008e-05,2]
[395155015,1764488204517,500.0,8.008e-05,2]
[395155016,1764488204591,500.0,8.008e-05,2]
[395155017,1764488204669,500.0,8.008e-05,2]
[395155018,1764488204749,500.0,8.008e-05,2]
[395155019,1764488204831,500.0,8.008e-05,2]
[395155020,1764488204925,500.0,8.008e-05,2]
[395155021,1764488204993,500.0,8.008e-05,2]
[395155022,1764488205076,500.0,8.008e-05,2]
[395155023,1764488205149,500.0,8.008e-05,2]
[395155024,1764488205221,500.0,8.008e-05,2]
[395155025,1764488205307,500.0,8.008e-05,2]
[395155026,1764488205389,500.0,8.008e-05,2]
[395155027,1764488205461,500.0,8.008e-05,2]
[395155028,1764488205550,401.3946335,8.008e-05,2]
[395155029,1764488205613,98.6053665,8.008e-05,2]
[395155030,1764488205685,500.0,8.008e-05,2]
[395155031,1764488205756,500.0,8.008e-05,2]
[395155032,1764488205842,500.0,8.008e-05,2]
[395155033,1764488205912,500.0,8.008e-05,2]
[395155034,1764488205982,500.0,8.008e-05,2]
[395155035,1764488206065,500.0,8.008e-05,2]
[395155036,1764488206207,500.0,8.008e-05,2]
[395155037,1764488206332,500.0,8.008e-05,2]
[395155038,1764488206397,500.0,8.008e-05,2]
[395155039,1764488206474,500.0,8.008e-05,2]
[395155040,1764488206541,500.0,8.008e-05,2]
[395155041,1764488206617,500.0,8.008e-05,2]
[395155042,1764488206700,500.0,8.008e-05,2]
[395155043,1764488206768,500.0,8.008e-05,2]
[395155044,1764488206854,500.0,8.008e-05,2]
[395155045,1764488206922,500.0,8.008e-05,2]
[395155046,1764488207003,500.0,8.008e-05,2]
[395155047,1764488207082,500.0,8.008e-05,2]
[395155048,1764488207154,500.0,8.008e-05,2]
[395155049,1764488207267,401.4046335,8.008e-05,2]
[395155050,1764488207330,98.5953665,8.008e-05,2]
[395155051,1764488207419,500.0,8.008e-05,2]
[395155052,1764488207509,500.0,8.008e-05,2]
[395155053,1764488207580,500.0,8.008e-05,2]
[395155054,1764488207663,500.0,8.008e-05,2]
[395155055,1764488207746,500.0,8.008e-05,2]
[395155056,1764488207818,500.0,8.008e-05,2]
[395155057,1764488207894,500.0,8.008e-05,2]
[395155058,1764488207970,500.0,8.008e-05,2]
[395155059,1764488208059,500.0,8.008e-05,2]
[395155060,1764488208151,500.0,8.008e-05,2]
[395155061,1764488208230,500.0,8.008e-05,2]
[395155062,1764488208308,500.0,8.008e-05,2]
[395155063,1764488208379,500.0,8.008e-05,2]
[395155064,1764488208466,500.0,8.008e-05,2]
[395155065,1764488208535,500.0,8.008e-05,2]
[395155066,1764488208623,500.0,8.008e-05,2]
[395155067,1764488208691,500.0,8.008e-05,2]
[395155068,1764488208763,500.0,8.008e-05,2]
[395155069,1764488208830,500.0,8.008e-05,2]
[395155070,1764488208916,401.4146335,8.008e-05,2]
[395155071,1764488208977,98.5853665,8.008e-05,2]
[395155072,1764488209474,500.0,8.008e-05,2]
[395155073,1764488209550,500.0,8.008e-05,2]
[395155074,1764488209630,500.0,8.008e-05,2]
[395155075,1764488209713,500.0,8.008e-05,2]
[395155076,1764488209793,500.0,8.008e-05,2]
[395155077,1764488209865,500.0,8.008e-05,2]
[395155078,1764488209948,382.63495521,8.008e-05,2]
[395155079,1764488210037,500.0,8.008e-05,2]
[395155080,1764488210113,500.0,8.008e-05,2]
[395155081,1764488210214,500.0,8.008e-05,2]
[395155082,1764488210289,500.0,8.008e-05,2]
[395155083,1764488210369,500.0,8.008e-05,2]
[395155084,1764488210437,500.0,8.008e-05,2]
[395155085,1764488210516,500.0,8.008e-05,2]
[395155086,1764488210588,500.0,8.008e-05,2]
[395155087,1764488210682,500.0,8.008e-05,2]
[395155088,1764488210762,500.0,8.008e-05,2]
[395155089,1764488210883,500.0,8.008e-05,2]
[395155090,1764488210959,500.0,8.008e-05,2]
[395155091,1764488211044,500.0,8.008e-05,2]
[395155092,1764488211119,18.78967829,8.008e-05,2]
[395155093,1764488211179,481.21032171,8.008e-05,2]
[395155094,1764488211254,500.0,8.008e-05,2]
[395155095,1764488211339,500.0,8.008e-05,2]
[395155096,1764488211441,500.0,8.008e-05,2]
[395155097,1764488211519,500.0,8.008e-05,2]
[395155098,1764488211601,500.0,8.008e-05,2]
[395155099,1764488211690,500.0,8.008e-05,2]
[395155100,1764488211773,500.0,8.008e-05,2]
[395155101,1764488211853,500.0,8.008e-05,2]
[395155102,1764488211921,432.63495521,8.008e-05,2]
[395155103,1764488211995,500.0,8.008e-05,2]